bitfinex-derivatives/quotes_SOLF0:USTF0_20241027
["timestamp","ask_amount","ask_price","bid_price","bid_amount"]
[1730071812744,4.04,177.17,177.12,2.8261]
[1730071812939,3.6133,177.21,177.08,4.04]
[1730071813140,2.8253,177.18,177.15,2.8257]
[1730071813348,1.1838,177.21,177.13,4.04]
[1730071813844,2.8253,177.18,177.15,2.8256]
[1730071814038,2.8253,177.18,177.13,4.04]
[1730071814239,2.8249,177.2,177.18,2.8252]
[1730071814440,229.5151028,177.24,177.13,4.04]
[1730071814743,2.8249,177.21,177.17,2.8253]
[1730071815143,229.5151028,177.24,177.13,4.04]
[1730071815441,2.8247,177.22,177.18,2.8251]
[1730071815639,229.5151028,177.24,177.18,2.8251]
[1730071817047,4.04,177.25,177.18,2.8251]
[1730071817340,4.04,177.25,177.19,2.825]
[1730071817639,2.8247,177.21,177.19,2.825]
[1730071818143,4.04,177.25,177.19,2.825]
[1730071818441,2.8245,177.23,177.2,2.8249]
[1730071818947,4.02,177.29,177.22,2.8244]
[1730071819535,2.8238,177.27,177.22,2.8244]
[1730071819740,13.63404138,177.3,177.22,2.8244]
[1730071819939,7.6719,177.3,177.22,2.8244]
[1730071820139,17.65404138,177.3,177.22,2.8244]
[1730071820441,7.6719,177.3,177.22,2.8244]
[1730071820647,2.824,177.26,177.22,2.8244]
[1730071820841,5.2956,177.3,177.24,2.8241]
[1730071821348,2.8238,177.27,177.24,2.8241]
[1730071823142,5.2956,177.3,177.21,4.02]
[1730071823343,5.2956,177.3,177.23,2.8244]
[1730071824044,5.2956,177.3,177.21,4.02]
[1730071824045,4.02,177.38,177.27,2.8237]
[1730071824252,2.02817849,177.37,177.27,6.8437]
[1730071824437,0.84407849,177.36,177.27,6.8437]
[1730071824851,0.84407849,177.36,177.27,4.02]
[1730071825045,2.8233,177.3,177.27,4.02]
[1730071825245,1.1841,177.37,177.27,4.02]
[1730071825446,0.84378505,177.36,177.27,4.02]
[1730071826249,0.84378505,177.36,177.27,6.8437]
[1730071826953,2.8233,177.3,177.27,6.8437]
[1730071829952,1.1841,177.37,177.27,4.02]
[1730071830158,0.84362574,177.36,177.27,4.02]
[1730071830359,5.2041,177.37,177.27,4.02]
[1730071830751,2.823,177.32,177.29,2.8233]
[1730071830949,5.2041,177.37,177.27,4.02]
[1730071831349,5.2041,177.37,177.19,5.65]
[1730071831553,0.843668,177.36,177.2,4.02]
[1730071831952,2.8232,177.31,177.28,2.8235]
[1730071832566,2.8232,177.31,177.27,4.02]
[1730071833058,2.8232,177.31,177.28,2.8235]
[1730071834664,2.8232,177.31,177.27,4.02]
[1730071834964,2.8232,177.31,177.29,2.8234]
[1730071836161,1.1841,177.37,177.29,2.8234]
[1730071836354,2.823,177.32,177.29,2.8234]
[1730071839262,2.8224,177.36,177.34,2.8226]
[1730071839561,1.16,177.39,177.34,2.8226]
[1730071839765,2.8218,177.4,177.36,2.8223]
[1730071839960,5.2294,177.43,177.36,2.8223]
[1730071840961,5.2294,177.43,177.37,2.8222]
[1730071841167,2.8218,177.4,177.37,2.8222]
[1730071841466,1.2094,177.43,177.35,4.02]
[1730071841667,1.2094,177.43,177.36,2.8223]
[1730071841969,1.2094,177.43,177.34,4.02]
[1730071842169,1.2094,177.43,177.34,2.8226]
[1730071842465,2.8222,177.37,177.34,2.8226]
[1730071843473,2.8224,177.36,177.33,2.8228]
[1730071844973,2.823,177.32,177.3,6.8432]
[1730071845771,4.02,177.4,177.3,6.8432]
[1730071846070,4.02,177.4,177.28,3.6123]
[1730071846264,4.02,177.4,177.28,6.3975]
[1730071846465,4.02,177.4,177.23,1.172]
[1730071846664,4.02,177.4,177.24,4.02]
[1730071847068,5.6429,177.42,177.24,4.02]
[1730071847268,4.02,177.39,177.24,4.02]
[1730071847669,4.02,177.39,177.3,2.8231]
[1730071848073,2.8227,177.34,177.31,2.8231]
[1730071849075,4.02,177.39,177.29,4.02]
[1730071849282,2.8224,177.36,177.29,4.02]
[1730071849780,2.8224,177.36,177.33,2.8227]
[1730071853471,4.02,177.39,177.29,4.02]
[1730071853770,2.8222,177.37,177.3,3.7521]
[1730071854163,2.8221,177.38,177.3,3.7521]
[1730071855276,2.8221,177.38,177.36,2.8222]
[1730071856077,2.8221,177.38,177.35,2.8224]
[1730071859983,2.8221,177.38,177.34,4.02]
[1730071860272,2.8221,177.38,177.36,2.8223]
[1730071860681,2.8219,177.39,177.36,2.8223]
[1730071860873,2.8219,177.39,177.34,4.02]
[1730071861275,2.8218,177.4,177.37,2.8221]
[1730071861575,2.8218,177.4,177.34,4.02]
[1730071861978,2.8215,177.41,177.38,2.8219]
[1730071862378,256.37860525,177.44,177.38,2.8219]
[1730071862678,252.35860525,177.44,177.38,2.8219]
[1730071862884,2.8218,177.4,177.38,2.8219]
[1730071863087,2.8218,177.4,177.37,2.8221]
[1730071863385,2.8216,177.41,177.34,4.02]
[1730071863973,2.8219,177.39,177.34,4.02]
[1730071864482,2.8221,177.38,177.35,4.02]
[1730071866388,2.8221,177.38,177.35,2.8224]
[1730071866776,4.02,177.45,177.34,4.02]
[1730071867583,2.8221,177.38,177.34,4.02]
[1730071868177,2.8221,177.38,177.35,2.8223]
[1730071868887,2.8221,177.38,177.34,4.02]
[1730071869087,2.8221,177.38,177.36,2.8223]
[1730071870288,2.8221,177.38,177.34,4.02]
[1730071870487,2.8221,177.38,177.35,2.8224]
[1730071871888,4.02,177.45,177.34,4.02]
[1730071872489,4.02,177.45,177.37,2.8221]
[1730071873386,4.02,177.45,177.35,2.8225]
[1730071873590,0.84429924,177.44,177.35,2.8225]
[1730071873887,4.02,177.45,177.35,2.8225]
[1730071874087,2.8221,177.38,177.35,2.8225]
[1730071876589,4.02,177.45,177.3,3.7521]
[1730071876785,2.8223,177.37,177.34,2.8225]
[1730071876977,4.02,177.41,177.33,4.02]
[1730071877379,2.8224,177.36,177.33,6.8427]
[1730071877996,2.8224,177.36,177.34,2.8226]
[1730071881390,2.8223,177.37,177.34,2.8226]
[1730071882291,2.8223,177.36,177.34,2.8226]
[1730071883802,4.02,177.41,177.3,3.7521]
[1730071883992,2.8228,177.33,177.31,2.823]
[1730071884887,2.8227,177.34,177.3,4.02]
[1730071885093,2.8227,177.34,177.32,2.8229]
[1730071901512,2.8229,177.33,177.29,4.02]
[1730071903317,2.8229,177.33,177.31,2.8231]
[1730071903514,4.02,177.37,177.29,4.02]
[1730071904726,2.8229,177.33,177.3,2.8232]
[1730071904925,4.02,177.37,177.25,2.4222]
[1730071905128,2.8231,177.31,177.29,2.8234]
[1730071905821,4.02,177.37,177.29,2.8234]
[1730071906028,2.823,177.32,177.29,2.8234]
[1730071907117,2.823,177.32,177.26,4.02]
[1730071907118,4.02,177.37,177.26,4.02]
[1730071907320,4.02,177.37,177.28,2.8236]
[1730071907515,2.4566,177.36,177.28,2.8236]
[1730071907720,2.8232,177.31,177.28,2.8236]
[1730071908133,2.8234,177.3,177.27,2.8236]
[1730071908334,4.02,177.33,177.25,1.1988]
[1730071908630,4.02,177.33,177.26,5.06279835]
[1730071908828,2.8236,177.29,177.26,2.8238]
[1730071911123,4.02,177.33,177.25,2.8239]
[1730071911329,4.02,177.33,177.26,6.47316422]
[1730071911522,4.02,177.33,177.25,2.8239]
[1730071911724,2.8236,177.29,177.26,6.47313956]
[1730071911920,4.02,177.33,177.25,2.8239]
[1730071912121,4.02,177.33,177.26,6.47313956]
[1730071912316,4.02,177.33,177.25,2.8239]
[1730071912317,2.8237,177.28,177.25,2.8239]
[1730071912523,2.8237,177.28,177.26,5.06027643]
[1730071912824,2.8237,177.28,177.25,2.8239]
[1730071913016,2.8237,177.28,177.26,5.06027643]
[1730071913217,2.8237,177.28,177.23,5.2919]
[1730071913422,2.8237,177.28,177.26,2.8239]
[1730071916423,2.8237,177.28,177.25,2.824]
[1730071918324,2.8231,177.31,177.28,2.8235]
[1730071919022,2.8233,177.3,177.28,2.8235]
[1730071919229,2.8233,177.3,177.23,1.2719]
[1730071919533,2.8233,177.3,177.27,2.8237]
[1730071919923,2.4566,177.36,177.23,1.2719]
[1730071920126,4.02,177.35,177.23,1.2719]
[1730071920532,2.823,177.32,177.23,1.2719]
[1730071920927,4.02,177.35,177.23,1.2719]
[1730071921128,2.8231,177.31,177.28,2.8234]
[1730071922834,2.8231,177.31,177.26,4.02]
[1730071923039,2.823,177.32,177.29,2.8234]
[1730071925934,2.8228,177.34,177.29,2.8234]
[1730071926140,4.02,177.35,177.29,2.8234]
[1730071926737,2.8231,177.32,177.29,2.8234]
[1730071927131,2.8229,177.33,177.3,2.8232]
[1730071927340,16.80893628,177.41,177.27,1.1581]
[1730071927531,4.02,177.39,177.33,2.8227]
[1730071928031,2.8223,177.36,177.33,2.8227]
[1730071928233,1.259,177.4,177.36,2.8223]
[1730071928535,4.02,177.41,177.27,2.4034]
[1730071928724,4.02,177.41,177.32,2.8228]
[1730071929124,2.8227,177.34,177.28,4.02]
[1730071929340,2.8227,177.34,177.31,2.823]
[1730071930738,2.8231,177.31,177.28,2.8235]
[1730071931332,2.823,177.32,177.29,2.8234]
[1730071934344,1.1587,177.36,177.25,4.02]
[1730071934545,2.8232,177.31,177.26,5.05706463]
[1730071934845,2.8232,177.31,177.25,4.02]
[1730071935441,2.8232,177.31,177.28,2.8235]
[1730071949660,1.1587,177.36,177.25,4.02]
[1730071949860,1.1587,177.36,177.26,6.47415015]
[1730071950157,1.1587,177.36,177.27,5.06187233]
[1730071950361,2.8231,177.31,177.25,4.02]
[1730071950753,2.8231,177.31,177.28,2.8235]
[1730071951362,1.1587,177.36,177.25,4.02]
[1730071951562,2.8231,177.31,177.28,2.8235]
[1730071952763,1.1587,177.36,177.26,1.2258]
[1730071953062,2.8231,177.32,177.29,2.8233]
[1730071953960,2.8231,177.31,177.29,2.8233]
[1730071955459,2.4572,177.38,177.26,2.4561]
[1730071955665,4.02,177.37,177.27,14.57753299]
[1730071955857,4.02,177.37,177.28,6.47575778]
[1730071956061,2.8227,177.34,177.31,2.8231]
[1730071956462,2.8228,177.33,177.31,2.8231]
[1730071959470,4.02,177.37,177.26,2.4561]
[1730071959659,4.02,177.37,177.27,14.57974807]
[1730071959963,4.02,177.37,177.28,6.4766148]
[1730071960165,4.02,177.37,177.26,6.4761]
[1730071960364,2.8232,177.31,177.28,2.8235]
[1730071960965,2.8232,177.31,177.26,6.4761]
[1730071961169,2.8232,177.31,177.29,2.8234]
[1730071964670,2.8229,177.33,177.3,2.8233]
[1730071964869,4.02,177.34,177.26,6.4761]
[1730071965069,4.02,177.34,177.27,14.58367262]
[1730071965270,4.02,177.34,177.28,6.47814231]
[1730071965465,2.8232,177.31,177.28,2.8235]
[1730071969884,2.8234,177.3,177.27,2.8236]
[1730071970176,2.8234,177.3,177.28,6.48015364]
[1730071970372,2.8234,177.3,177.27,2.8236]
[1730071970572,2.8234,177.3,177.28,6.48052961]
[1730071970773,2.8234,177.3,177.27,2.8236]
[1730071970982,2.8234,177.3,177.28,6.48052907]
[1730071971279,2.8234,177.3,177.27,2.8236]
[1730071971480,2.8234,177.3,177.28,6.4807823]
[1730071971681,2.8234,177.3,177.27,2.8236]
[1730071971881,2.8234,177.3,177.28,6.48078257]
[1730071972181,2.8234,177.3,177.27,2.8236]
[1730071972375,2.8234,177.3,177.28,6.48108189]
[1730071972575,2.8234,177.3,177.27,2.8236]
[1730071972771,2.8234,177.3,177.28,6.48108096]
[1730071973078,2.8234,177.3,177.27,2.8236]
[1730071973580,4.02,177.33,177.28,6.48121861]
[1730071973773,2.8234,177.3,177.27,2.8236]
[1730071973973,2.8234,177.3,177.28,6.48139145]
[1730071974282,2.8235,177.29,177.27,2.8236]
[1730071974484,2.8235,177.29,177.28,6.48151855]
[1730071977084,2.8235,177.29,177.28,1.41230988]
[1730071977274,2.8235,177.29,177.28,6.4813604]
[1730071978382,4.02,177.33,177.28,6.4813604]
[1730071978575,2.8231,177.31,177.29,7.89235619]
[1730071978777,2.8231,177.31,177.29,2.8233]
[1730071980782,2.823,177.32,177.29,2.8233]
[1730071982384,2.823,177.32,177.3,2.8232]
[1730071982582,2.8226,177.34,177.26,2.3878]
[1730071982782,1.2471,177.41,177.33,2.8228]
[1730071982980,2.822,177.39,177.31,4.02]
[1730071983181,11.17705306,177.42,177.32,7.5645]
[1730071983182,9.98455306,177.42,177.32,7.5645]
[1730071983379,9.98455306,177.42,177.39,2.8218]
[1730071983787,2.8215,177.42,177.39,2.8218]
[1730071984885,2.8216,177.41,177.38,2.822]
[1730071985784,4.02,177.44,177.38,2.822]
[1730071986581,4.02,177.44,177.36,4.02]
[1730071986886,4.02,177.44,177.36,6.8422]
[1730071987085,4.02,177.44,177.36,4.02]
[1730071987288,2.8217,177.4,177.37,2.8221]
[1730071989290,2.8214,177.42,177.39,2.8218]
[1730071990183,2.8215,177.41,177.36,4.02]
[1730071990489,2.8215,177.41,177.38,2.8219]
[1730071996788,4.02,177.44,177.36,2.8222]
[1730071996991,4.02,177.44,177.35,4.0]
[1730071997190,2.8223,177.37,177.34,2.8226]
[1730071997396,4.02,177.44,177.32,7.5445]
[1730071997791,2.8222,177.37,177.34,2.8226]
[1730072000395,4.0,177.4,177.37,74.1778]
[1730072000790,2.822,177.38,177.37,74.1778]
[1730072018006,2.822,177.38,177.37,7.17014263]
[1730072019513,6.822,177.38,177.37,7.17014263]
[1730072021102,6.822,177.38,177.32,2.8229]
[1730072021103,2.8226,177.35,177.32,2.8229]
[1730072021305,4.0,177.38,177.32,2.8229]
[1730072021707,4.0,177.38,177.26,3.6476]
[1730072021903,4.0,177.38,177.27,6.46356342]
[1730072021904,6.75711861,177.38,177.27,6.46356342]
[1730072022108,2.8232,177.31,177.28,2.8235]
[1730072025417,2.8232,177.31,177.29,2.8234]
[1730072027004,2.8232,177.31,177.28,2.8235]
[1730072027210,2.8233,177.3,177.28,2.8235]
[1730072029920,2.8236,177.28,177.26,6.4714]
[1730072030623,4.0,177.34,177.26,3.6476]
[1730072030916,4.0,177.36,177.26,3.6476]
[1730072031109,4.0,177.36,177.27,6.46387154]
[1730072031315,4.0,177.36,177.28,4.0]
[1730072031522,2.8229,177.33,177.28,4.0]
[1730072033127,2.8229,177.33,177.3,2.8232]
[1730072036224,2.8234,177.3,177.28,6.8236]
[1730072036428,2.8234,177.3,177.28,4.0]
[1730072036625,2.8234,177.3,177.26,3.6476]
[1730072036829,4.0,177.36,177.26,6.4714]
[1730072037129,5.6443,177.38,177.26,3.6476]
[1730072037130,4.0,177.35,177.26,3.6476]
[1730072037319,2.8235,177.29,177.26,3.6476]
[1730072037520,4.0,177.35,177.26,3.6476]
[1730072038126,2.8229,177.33,177.27,2.8237]
[1730072038326,4.0,177.35,177.27,2.8237]
[1730072039226,2.8222,177.37,177.35,73.0]
[1730072039427,4.0,177.36,177.27,2.8237]
[1730072040230,2.8233,177.3,177.27,2.8237]
[1730072045825,2.8235,177.29,177.26,6.4714]
[1730072046931,4.0,177.32,177.26,3.6476]
[1730072047431,2.8236,177.28,177.26,3.6476]
[1730072053036,2.8237,177.28,177.25,2.824]
[1730072054030,2.8239,177.27,177.24,2.8241]
[1730072055934,2.8239,177.27,177.24,2.8242]
[1730072056131,2.8239,177.27,177.23,1.2436]
[1730072056941,4.0,177.32,177.23,1.2436]
[1730072057432,2.8237,177.28,177.25,2.824]
[1730072057838,4.0,177.32,177.25,2.824]
[1730072058036,2.8238,177.27,177.25,2.824]
[1730072058440,2.8237,177.28,177.25,2.824]
[1730072058737,4.0,177.32,177.25,2.824]
[1730072058940,2.8237,177.28,177.25,2.824]
[1730072059839,4.0,177.32,177.25,2.8241]
[1730072060038,4.0,177.32,177.23,1.2436]
[1730072060333,4.0,177.32,177.24,5.05202173]
[1730072060537,2.8237,177.28,177.25,2.824]
[1730072061131,2.8238,177.27,177.25,2.824]
[1730072063639,2.8234,177.3,177.24,2.8242]
[1730072063840,4.0,177.32,177.23,1.2436]
[1730072064543,2.824,177.26,177.23,4.0679]
[1730072064741,4.0,177.32,177.2,2.5158]
[1730072064944,4.0,177.32,177.21,14.5580876]
[1730072065246,2.8243,177.24,177.22,6.46847418]
[1730072065443,2.8243,177.24,177.23,5.05600839]
[1730072065950,2.8243,177.24,177.21,2.8246]
[1730072066244,2.8243,177.24,177.22,6.46912443]
[1730072066450,2.8243,177.24,177.23,5.05665199]
[1730072067138,2.8243,177.24,177.21,2.8246]
[1730072067344,2.8243,177.24,177.22,6.46915857]
[1730072067637,2.8243,177.24,177.21,2.8246]
[1730072067842,2.8243,177.24,177.22,9.29376423]
[1730072068140,2.8243,177.24,177.22,2.8245]
[1730072070537,4.0,177.27,177.22,2.8245]
[1730072070733,2.8241,177.25,177.22,2.8245]
[1730072073343,2.8242,177.24,177.22,2.8245]
[1730072073535,4.0,177.27,177.21,2.8246]
[1730072074244,2.8244,177.23,177.21,2.8246]
[1730072077049,2.8244,177.23,177.2,2.8248]
[1730072077254,2.8244,177.23,177.18,2.10377153]
[1730072077452,2.8244,177.23,177.19,6.46749419]
[1730072077746,4.0,177.27,177.2,6.46749419]
[1730072077942,2.8246,177.22,177.2,2.8249]
[1730072078153,4.0,177.27,177.2,2.8249]
[1730072078940,2.8244,177.23,177.2,2.8249]
[1730072081554,4.0,177.27,177.2,2.8249]
[1730072081753,2.8246,177.22,177.2,2.8249]
[1730072090752,2.824,177.26,177.23,2.8243]
[1730072090951,4.0,177.28,177.19,12.08780627]
[1730072091151,4.0,177.29,177.2,6.46731002]
[1730072091350,2.8239,177.26,177.21,1.41255118]
[1730072091555,2.8239,177.26,177.19,4.0]
[1730072091751,2.8239,177.26,177.2,14.55522691]
[1730072091953,4.0,177.29,177.21,6.46742357]
[1730072092260,4.0,177.29,177.22,6.46742357]
[1730072092459,2.8238,177.27,177.24,2.8241]
[1730072094651,2.8236,177.29,177.26,2.8238]
[1730072098464,2.8236,177.29,177.24,1.2403]
[1730072099162,2.8236,177.29,177.26,2.8238]
[1730072100867,270.97267389,177.34,177.24,1.2403]
[1730072101173,270.97267389,177.34,177.25,6.46887083]
[1730072101465,270.97267389,177.34,177.26,6.46887083]
[1730072101663,2.8229,177.33,177.3,2.8232]
[1730072101863,270.97267389,177.34,177.3,2.8232]
[1730072102068,4.0,177.35,177.3,2.8232]
[1730072102563,2.8231,177.32,177.29,2.8234]
[1730072103965,2.8231,177.31,177.29,2.8234]
[1730072109574,2.8233,177.31,177.28,2.8236]
[1730072109874,4.0,177.35,177.28,2.8236]
[1730072110480,2.8228,177.33,177.28,2.8236]
[1730072110675,4.0,177.35,177.28,2.8236]
[1730072112275,2.8233,177.3,177.28,2.8236]
[1730072125797,4.0,177.35,177.27,4.0]
[1730072126695,2.8229,177.33,177.28,2.8235]
[1730072126994,4.0,177.35,177.28,2.8235]
[1730072128392,2.8233,177.3,177.28,2.8235]
[1730072130092,2.8228,177.33,177.29,2.8234]
[1730072130292,4.0,177.35,177.27,4.0]
[1730072130795,2.8229,177.33,177.3,2.8232]
[1730072130997,4.0,177.35,177.3,2.8232]
[1730072131693,2.8229,177.33,177.3,2.8232]
[1730072132096,2.823,177.32,177.3,2.8232]
[1730072138999,4.0,177.37,177.27,4.0]
[1730072139201,2.8229,177.33,177.3,2.8233]
[1730072139395,4.0,177.37,177.27,4.0]
[1730072139607,2.8219,177.39,177.36,2.8222]
[1730072139806,265.15137586,177.42,177.32,4.0]
[1730072139995,259.98897586,177.42,177.33,4.0]
[1730072140192,4.0,177.46,177.4,2.8216]
[1730072140797,2.8212,177.44,177.4,2.8216]
[1730072141606,2.8212,177.44,177.38,4.0]
[1730072141798,2.821,177.45,177.38,4.0]
[1730072143411,2.821,177.45,177.4,2.8216]
[1730072144210,2.821,177.44,177.4,2.8216]
[1730072146905,2.821,177.44,177.41,2.8215]
[1730072147811,4.0,177.48,177.38,4.0]
[1730072148013,2.8212,177.43,177.4,2.8216]
[1730072154205,2.8214,177.42,177.4,2.8216]
[1730072156020,2.8215,177.41,177.38,2.8219]
[1730072156211,2.8215,177.41,177.39,4.0]
[1730072157209,2.8215,177.41,177.39,6.8218]
[1730072161715,2.8215,177.41,177.39,2.8218]
[1730072165723,266.74414309,177.51,177.38,4.0]
[1730072165724,270.74414309,177.51,177.38,4.0]
[1730072167010,2.821,177.45,177.42,2.8213]
[1730072167213,2.821,177.45,177.42,6.8213]
[1730072170019,2.8211,177.44,177.42,4.0]
[1730072170223,270.74414309,177.51,177.42,4.0]
[1730072170525,2.8204,177.49,177.42,4.0]
[1730072170728,270.74414309,177.51,177.42,4.0]
[1730072172320,2.8212,177.44,177.42,4.0]
[1730072172629,270.74414309,177.51,177.42,4.0]
[1730072173028,2.8212,177.44,177.42,4.0]
[1730072177323,2.8208,177.46,177.42,4.0]
[1730072177625,270.74414309,177.51,177.42,4.0]
[1730072177626,261.10414309,177.51,177.42,4.0]
[1730072178026,2.8205,177.48,177.46,2.8207]
[1730072178224,261.10414309,177.51,177.46,2.8207]
[1730072178631,2.8203,177.49,177.46,2.8207]
[1730072178833,261.10414309,177.51,177.46,2.8207]
[1730072179131,261.10414309,177.51,177.46,2.8206]
[1730072180231,2.8204,177.48,177.46,2.8206]
[1730072180634,259.86044309,177.51,177.47,2.8205]
[1730072180822,2.8202,177.5,177.47,2.8205]
[1730072181527,259.86044309,177.51,177.47,2.8205]
[1730072181733,2.8203,177.49,177.47,2.8205]
[1730072182929,262.68054309,177.51,177.48,2.8204]
[1730072183227,4.0,177.54,177.48,2.8204]
[1730072183532,2.82,177.51,177.48,2.8204]
[1730072184127,2.82,177.51,177.46,4.0]
[1730072184328,2.82,177.51,177.49,2.8201]
[1730072184721,2.8198,177.52,177.49,2.8201]
[1730072185333,2.8198,177.52,177.46,4.0]
[1730072186224,271.77618462,177.59,177.46,4.0]
[1730072186424,275.77618462,177.59,177.52,2.8197]
[1730072187027,2.8194,177.55,177.52,2.8197]
[1730072187421,275.77618462,177.59,177.51,6.8199]
[1730072187627,275.77618462,177.59,177.51,4.0]
[1730072189234,2.8198,177.53,177.51,4.0]
[1730072192539,2.8195,177.54,177.51,4.0]
[1730072193337,2.8195,177.54,177.52,2.8197]
[1730072193542,2.8195,177.54,177.51,4.0]
[1730072194040,2.8195,177.54,177.51,6.8198]
[1730072198536,2.8195,177.54,177.51,2.8198]
[1730072198743,275.77618462,177.59,177.49,4.0]
[1730072198944,6.47833435,177.58,177.48,2.8203]
[1730072199143,5.6377,177.58,177.48,2.8203]
[1730072199346,2.8204,177.49,177.46,2.8206]
[1730072199546,4.0,177.54,177.44,4.0]
[1730072199739,5.6377,177.58,177.44,4.0]
[1730072199740,5.1949,177.53,177.44,4.0]
[1730072199941,4.0,177.52,177.44,4.0]
[1730072200143,2.8205,177.48,177.45,2.8208]
[1730072205149,2.8206,177.47,177.45,2.8208]
[1730072206151,4.0,177.52,177.4,143.49425629]
[1730072206351,6.4896,177.52,177.41,4.0]
[1730072206851,2.8212,177.44,177.41,6.8214]
[1730072207456,2.8212,177.44,177.42,2.8213]
[1730072207944,6.4896,177.52,177.42,2.8213]
[1730072208145,2.821,177.45,177.42,2.8213]
[1730072210356,2.8209,177.45,177.41,4.0]
[1730072210559,2.8209,177.45,177.42,2.8212]
[1730072214760,2.8209,177.45,177.43,2.8212]
[1730072218656,6.4896,177.52,177.43,2.8212]
[1730072218958,2.8208,177.46,177.43,2.8212]
[1730072219968,6.4896,177.52,177.41,4.0]
[1730072220264,4.0,177.52,177.41,4.0]
[1730072220468,1.1949,177.53,177.42,3.7172]
[1730072221663,2.8202,177.5,177.47,2.8204]
[1730072229672,1.1949,177.53,177.47,2.8204]
[1730072229864,2.8203,177.49,177.47,2.8204]
[1730072230965,1.1949,177.53,177.45,4.0]
[1730072231171,1.1949,177.53,177.44,2.821]
[1730072232368,2.8207,177.47,177.44,2.821]
[1730072241068,3.98,177.51,177.43,3.98]
[1730072241069,2.821,177.44,177.43,3.98]
[1730072241467,2.821,177.44,177.4,147.47425629]
[1730072241681,2.821,177.44,177.41,6.36223009]
[1730072241884,2.821,177.44,177.42,1.41102101]
[1730072242075,2.821,177.44,177.41,2.8215]
[1730072242277,2.821,177.44,177.42,1.41102604]
[1730072242475,2.821,177.44,177.41,2.8215]
[1730072242782,2.821,177.44,177.42,1.41103435]
[1730072242981,2.821,177.44,177.41,2.8215]
[1730072243173,2.821,177.44,177.42,1.41104075]
[1730072243374,2.821,177.44,177.41,2.8215]
[1730072243575,2.821,177.44,177.42,1.41104181]
[1730072243776,2.821,177.44,177.41,2.8215]
[1730072243976,2.821,177.44,177.42,1.41101577]
[1730072244178,3.98,177.49,177.4,147.47425629]
[1730072244475,3.98,177.49,177.41,6.36313716]
[1730072244677,3.98,177.49,177.4,147.47425629]
[1730072244878,3.98,177.49,177.41,6.36355101]
[1730072245176,3.98,177.49,177.42,1.41102751]
[1730072245383,3.98,177.49,177.4,147.47425629]
[1730072245583,3.98,177.49,177.41,6.36400443]
[1730072245884,3.98,177.49,177.42,1.41102751]
[1730072246188,3.98,177.49,177.4,147.47425629]
[1730072246386,2.8212,177.44,177.41,9.18552489]
[1730072246585,2.8212,177.44,177.42,6.36402489]
[1730072246775,2.8212,177.44,177.41,2.8215]
[1730072247084,2.8212,177.44,177.42,6.36447337]
[1730072247284,2.8212,177.44,177.41,2.8215]
[1730072247486,2.8212,177.44,177.42,6.36463143]
[1730072247676,2.8212,177.44,177.41,2.8215]
[1730072247879,2.8212,177.44,177.42,6.36463143]
[1730072248079,2.8212,177.44,177.41,2.8215]
[1730072248284,2.8212,177.44,177.42,6.36466266]
[1730072248482,3.98,177.49,177.4,147.47425629]